[Event "Titled Tuesday Blitz June 20 Early 2023"]
[White "Heinemann, Josefine"]
[Black "Marin Masis, Jose Esteban"]
[WhiteFideId "12900460"]
[BlackFideId "6508146"]
[WhiteElo "2342"]
[BlackElo "1838"]
[Result "1-0"]
[Round "2"]
[TimeControl "180+2"]
[Date "2023.06.20"]
[WhiteClock "0:00:11"]
[BlackClock "0:00:03"]
[Board "233"]

1. d4 {[%clk 0:03:00]}  Nf6 {[%clk 0:02:59]} 2. c4 {[%clk 0:02:59]}  e6 {[%clk 0:02:59]} 3. Nf3 {[%clk 0:02:57]}  Bb4+ {[%clk 0:02:59]} 4. Bd2 {[%clk 0:02:55]}  Qe7 {[%clk 0:02:59]} 5. g3 {[%clk 0:02:54]}  b6 {[%clk 0:02:57]} 6. Bg2 {[%clk 0:02:54]}  Bb7 {[%clk 0:02:57]} 7. O-O {[%clk 0:02:53]}  Bxd2 {[%clk 0:02:57]} 8. Qxd2 {[%clk 0:02:52]}  d6 {[%clk 0:02:58]} 9. Nc3 {[%clk 0:02:45]}  Nbd7 {[%clk 0:02:57]} 10. Rfe1 {[%clk 0:02:39]}  O-O {[%clk 0:02:56]} 11. e4 {[%clk 0:02:38]}  e5 {[%clk 0:02:56]} 12. Qc2 {[%clk 0:02:35]}  a6 {[%clk 0:02:28]} 13. h3 {[%clk 0:02:32]}  Rfe8 {[%clk 0:02:27]} 14. Rad1 {[%clk 0:02:27]}  Rad8 {[%clk 0:02:25]} 15. d5 {[%clk 0:02:24]}  Nc5 {[%clk 0:02:23]} 16. b4 {[%clk 0:02:23]}  Ncd7 {[%clk 0:02:22]} 17. a3 {[%clk 0:02:16]}  h6 {[%clk 0:02:12]} 18. Nh4 {[%clk 0:02:14]}  Bc8 {[%clk 0:02:06]} 19. Nf5 {[%clk 0:02:14]}  Qf8 {[%clk 0:02:06]} 20. f4 {[%clk 0:02:10]}  Nb8 {[%clk 0:01:58]} 21. Nh4 {[%clk 0:02:07]}  Nh5 {[%clk 0:01:50]} 22. Kh2 {[%clk 0:02:03]}  exf4 {[%clk 0:01:49]} 23. gxf4 {[%clk 0:02:03]}  Nxf4 {[%clk 0:01:48]} 24. Qf2 {[%clk 0:01:59]}  Nxg2 {[%clk 0:01:44]} 25. Kxg2 {[%clk 0:01:55]}  Qe7 {[%clk 0:01:41]} 26. Nf5 {[%clk 0:01:42]}  Bxf5 {[%clk 0:01:31]} 27. exf5 {[%clk 0:01:41]}  Qg5+ {[%clk 0:01:29]} 28. Kh1 {[%clk 0:01:41]}  Nd7 {[%clk 0:01:25]} 29. Ne4 {[%clk 0:01:28]}  Qh5 {[%clk 0:01:17]} 30. Rd3 {[%clk 0:01:28]}  Re5 {[%clk 0:01:08]} 31. Rg3 {[%clk 0:01:03]}  Rxf5 {[%clk 0:00:53]} 32. Qg2 {[%clk 0:01:02]}  g6 {[%clk 0:00:53]} 33. Rg4 {[%clk 0:00:49]}  Kg7 {[%clk 0:00:41]} 34. Ng3 {[%clk 0:00:48]}  Qxg4 {[%clk 0:00:27]} 35. hxg4 {[%clk 0:00:48]}  Re5 {[%clk 0:00:28]} 36. Rxe5 {[%clk 0:00:47]}  Nxe5 {[%clk 0:00:28]} 37. Qe4 {[%clk 0:00:47]}  Rh8 {[%clk 0:00:21]} 38. c5 {[%clk 0:00:46]}  bxc5 {[%clk 0:00:20]} 39. bxc5 {[%clk 0:00:47]}  Rb8 {[%clk 0:00:19]} 40. cxd6 {[%clk 0:00:25]}  cxd6 {[%clk 0:00:20]} 41. Qc2 {[%clk 0:00:22]}  Rb5 {[%clk 0:00:19]} 42. Qd1 {[%clk 0:00:17]}  Ra5 {[%clk 0:00:17]} 43. Ne4 {[%clk 0:00:17]}  Rxa3 {[%clk 0:00:15]} 44. Nxd6 {[%clk 0:00:18]}  Rh3+ {[%clk 0:00:15]} 45. Kg2 {[%clk 0:00:17]}  Rd3 {[%clk 0:00:15]} 46. Qe1 {[%clk 0:00:15]}  Rxd5 {[%clk 0:00:15]} 47. Ne8+ {[%clk 0:00:14]}  Kf8 {[%clk 0:00:14]} 48. Nc7 {[%clk 0:00:15]}  Rc5 {[%clk 0:00:13]} 49. Nxa6 {[%clk 0:00:15]}  Rc2+ {[%clk 0:00:14]} 50. Kg3 {[%clk 0:00:15]}  Rc3+ {[%clk 0:00:13]} 51. Kg2 {[%clk 0:00:14]}  Rc2+ {[%clk 0:00:13]} 52. Kf1 {[%clk 0:00:14]}  Nf3 {[%clk 0:00:11]} 53. Qb4+ {[%clk 0:00:14]}  Kg7 {[%clk 0:00:09]} 54. Nc5 {[%clk 0:00:14]}  Nh2+ {[%clk 0:00:09]} 55. Ke1 {[%clk 0:00:13]}  Nf3+ {[%clk 0:00:10]} 56. Kd1 {[%clk 0:00:14]}  Rd2+ {[%clk 0:00:10]} 57. Kc1 {[%clk 0:00:13]}  Rd4 {[%clk 0:00:08]} 58. Qc3 {[%clk 0:00:13]}  f6 {[%clk 0:00:03]} 59. Ne6+ {[%clk 0:00:11]} 1-0


[Site "https://www.chess.com"]

[Event "Titled Tuesday Blitz June 20 Early 2023"]
[White "Prydun, Andriy"]
[Black "Sailer, Mike"]
[WhiteFideId "14145898"]
[BlackFideId "2012901"]
[WhiteElo "2164"]
[BlackElo "2109"]
[Result "1-0"]
[Round "2"]
[TimeControl "180+2"]
[Date "2023.06.20"]
[WhiteClock "0:00:28"]
[BlackClock "0:00:00"]
[Board "236"]

1. e4 {[%clk 0:02:59]}  d5 {[%clk 0:03:00]} 2. exd5 {[%clk 0:02:58]}  Qxd5 {[%clk 0:03:00]} 3. Nc3 {[%clk 0:02:59]}  Qd6 {[%clk 0:03:00]} 4. d4 {[%clk 0:02:58]}  c6 {[%clk 0:03:01]} 5. Nf3 {[%clk 0:02:58]}  Bf5 {[%clk 0:02:55]} 6. Ne5 {[%clk 0:02:51]}  Nd7 {[%clk 0:02:52]} 7. Nc4 {[%clk 0:02:38]}  Qg6 {[%clk 0:02:51]} 8. Ne3 {[%clk 0:02:36]}  Nh6 {[%clk 0:02:50]} 9. g4 {[%clk 0:02:27]}  Be4 {[%clk 0:02:34]} 10. f3 {[%clk 0:02:20]}  Bd5 {[%clk 0:02:19]} 11. Ncxd5 {[%clk 0:02:19]}  cxd5 {[%clk 0:02:19]} 12. Nxd5 {[%clk 0:02:19]}  O-O-O {[%clk 0:02:12]} 13. Qe2 {[%clk 0:01:58]}  Nb6 {[%clk 0:01:21]} 14. Nf4 {[%clk 0:01:12]}  Qc6 {[%clk 0:01:06]} 15. Be3 {[%clk 0:00:43]}  Nxg4 {[%clk 0:00:59]} 16. fxg4 {[%clk 0:00:43]}  Qxh1 {[%clk 0:00:58]} 17. O-O-O {[%clk 0:00:44]}  e5 {[%clk 0:00:41]} 18. Bg2 {[%clk 0:00:34]}  Qxh2 {[%clk 0:00:40]} 19. Rh1 {[%clk 0:00:34]}  Qg3 {[%clk 0:00:30]} 20. Nh5 {[%clk 0:00:33]}  exd4 {[%clk 0:00:07]} 21. Nxg3 {[%clk 0:00:33]}  dxe3 {[%clk 0:00:07]} 22. Qf3 {[%clk 0:00:30]}  Rd7 {[%clk 0:00:06]} 23. Rd1 {[%clk 0:00:28]}  Nd5 {[%clk 0:00:00]} 24. Rxd5 {[%clk 0:00:28]} 1-0


[Site "https://www.chess.com"]

[Event "Titled Tuesday Blitz June 20 Early 2023"]
[White "Vega Gutierrez, Sabrina"]
[Black "Torres Dominguez, David"]
[WhiteFideId "2219026"]
[BlackFideId "2220857"]
[WhiteElo "2209"]
[BlackElo "1999"]
[Result "0-1"]
[Round "2"]
[TimeControl "180+2"]
[Date "2023.06.20"]
[WhiteClock "0:00:00"]
[BlackClock "0:00:07"]
[Board "239"]

1. e4 {[%clk 0:02:59]}  Nc6 {[%clk 0:02:53]} 2. Nf3 {[%clk 0:02:57]}  e5 {[%clk 0:02:53]} 3. Nc3 {[%clk 0:02:55]}  Nf6 {[%clk 0:02:52]} 4. g3 {[%clk 0:02:56]}  d5 {[%clk 0:02:50]} 5. exd5 {[%clk 0:02:56]}  Nxd5 {[%clk 0:02:51]} 6. Bg2 {[%clk 0:02:57]}  Nxc3 {[%clk 0:02:51]} 7. bxc3 {[%clk 0:02:58]}  Bg4 {[%clk 0:02:50]} 8. h3 {[%clk 0:02:57]}  Bf5 {[%clk 0:02:48]} 9. O-O {[%clk 0:02:55]}  Qd7 {[%clk 0:02:48]} 10. Re1 {[%clk 0:02:51]}  f6 {[%clk 0:02:37]} 11. d4 {[%clk 0:02:30]}  O-O-O {[%clk 0:02:36]} 12. g4 {[%clk 0:02:25]}  Bg6 {[%clk 0:02:26]} 13. Rb1 {[%clk 0:02:05]}  h5 {[%clk 0:02:22]} 14. Nh4 {[%clk 0:02:05]}  Bf7 {[%clk 0:02:09]} 15. g5 {[%clk 0:01:58]}  Bd6 {[%clk 0:01:28]} 16. Qd3 {[%clk 0:01:46]}  Na5 {[%clk 0:01:14]} 17. Bd2 {[%clk 0:01:29]}  Bc4 {[%clk 0:01:05]} 18. Qf3 {[%clk 0:01:27]}  c6 {[%clk 0:01:04]} 19. Be3 {[%clk 0:01:07]}  Bd5 {[%clk 0:01:03]} 20. Qe2 {[%clk 0:00:46]}  Bc4 {[%clk 0:01:01]} 21. Qf3 {[%clk 0:00:46]}  Bd5 {[%clk 0:01:01]} 22. Qf5 {[%clk 0:00:46]}  Be6 {[%clk 0:01:01]} 23. Qd3 {[%clk 0:00:32]}  Bc4 {[%clk 0:01:00]} 24. Qd2 {[%clk 0:00:31]}  Rhe8 {[%clk 0:00:20]} 25. Qc1 {[%clk 0:00:28]}  exd4 {[%clk 0:00:08]} 26. cxd4 {[%clk 0:00:25]}  Bd5 {[%clk 0:00:08]} 27. Bd2 {[%clk 0:00:11]}  Nc4 {[%clk 0:00:07]} 28. Rxe8 {[%clk 0:00:03]}  Rxe8 {[%clk 0:00:07]} 29. Rb3 {[%clk 0:00:00]}  Bc7 {[%clk 0:00:07]} 0-1


[Site "https://www.chess.com"]

[Event "Titled Tuesday Blitz June 20 Early 2023"]
[White "Milovic, Aleksandra"]
[Black "zsizsi99"]
[WhiteFideId "933988"]
[WhiteElo "2000"]
[BlackElo "2438"]
[Result "0-1"]
[Round "2"]
[TimeControl "180+2"]
[Date "2023.06.20"]
[WhiteClock "0:00:09"]
[BlackClock "0:00:12"]
[Board "240"]

1. d4 {[%clk 0:03:00]}  Nf6 {[%clk 0:02:53]} 2. c4 {[%clk 0:02:59]}  e6 {[%clk 0:02:54]} 3. Nf3 {[%clk 0:02:57]}  d5 {[%clk 0:02:53]} 4. g3 {[%clk 0:02:51]}  Be7 {[%clk 0:02:50]} 5. Bg2 {[%clk 0:02:49]}  O-O {[%clk 0:02:51]} 6. O-O {[%clk 0:02:48]}  dxc4 {[%clk 0:02:51]} 7. Ne5 {[%clk 0:02:42]}  Nc6 {[%clk 0:02:43]} 8. Nxc6 {[%clk 0:02:34]}  bxc6 {[%clk 0:02:43]} 9. Bxc6 {[%clk 0:02:34]}  Rb8 {[%clk 0:02:42]} 10. Qc2 {[%clk 0:02:14]}  Rb6 {[%clk 0:02:17]} 11. Bg2 {[%clk 0:02:04]}  Qxd4 {[%clk 0:02:10]} 12. Be3 {[%clk 0:01:57]}  Qxb2 {[%clk 0:01:59]} 13. Qxb2 {[%clk 0:01:51]}  Rxb2 {[%clk 0:02:00]} 14. Bxa7 {[%clk 0:01:51]}  Rxe2 {[%clk 0:01:55]} 15. Bd4 {[%clk 0:01:31]}  c5 {[%clk 0:01:40]} 16. Bf3 {[%clk 0:01:11]}  Rc2 {[%clk 0:01:11]} 17. Bd1 {[%clk 0:00:45]}  cxd4 {[%clk 0:01:11]} 18. Bxc2 {[%clk 0:00:44]}  d3 {[%clk 0:01:12]} 19. Ba4 {[%clk 0:00:41]}  Nd5 {[%clk 0:00:55]} 20. Bb5 {[%clk 0:00:28]}  Bf6 {[%clk 0:00:44]} 21. Nd2 {[%clk 0:00:21]}  Bxa1 {[%clk 0:00:11]} 22. Rxa1 {[%clk 0:00:22]}  Nc3 {[%clk 0:00:11]} 23. Bxc4 {[%clk 0:00:18]}  Rd8 {[%clk 0:00:12]} 24. Kf1 {[%clk 0:00:12]}  Bb7 {[%clk 0:00:12]} 25. Rc1 {[%clk 0:00:11]}  Na4 {[%clk 0:00:11]} 26. Bb3 {[%clk 0:00:10]}  Nb6 {[%clk 0:00:11]} 27. Nc4 {[%clk 0:00:09]}  d2 {[%clk 0:00:10]} 28. Rd1 {[%clk 0:00:09]}  Ba6 {[%clk 0:00:10]} 29. Ke2 {[%clk 0:00:07]}  Nxc4 {[%clk 0:00:10]} 30. Bxc4 {[%clk 0:00:06]}  Bxc4+ {[%clk 0:00:11]} 31. Ke3 {[%clk 0:00:06]}  Bxa2 {[%clk 0:00:11]} 32. Rxd2 {[%clk 0:00:07]}  Rxd2 {[%clk 0:00:11]} 33. Kxd2 {[%clk 0:00:08]}  Bd5 {[%clk 0:00:11]} 34. Ke3 {[%clk 0:00:09]}  g5 {[%clk 0:00:10]} 35. f4 {[%clk 0:00:10]}  g4 {[%clk 0:00:10]} 36. Kd4 {[%clk 0:00:09]}  Kg7 {[%clk 0:00:11]} 37. Ke5 {[%clk 0:00:10]}  f6+ {[%clk 0:00:11]} 38. Kd4 {[%clk 0:00:09]}  Kg6 {[%clk 0:00:11]} 39. Ke3 {[%clk 0:00:09]}  Kf5 {[%clk 0:00:12]} 40. Kd4 {[%clk 0:00:10]}  h5 {[%clk 0:00:12]} 41. Ke3 {[%clk 0:00:10]}  e5 {[%clk 0:00:12]} 42. fxe5 {[%clk 0:00:07]}  fxe5 {[%clk 0:00:13]} 43. Kd3 {[%clk 0:00:06]}  Be4+ {[%clk 0:00:12]} 44. Ke3 {[%clk 0:00:06]}  Bb1 {[%clk 0:00:13]} 45. Kf2 {[%clk 0:00:05]}  Ke4 {[%clk 0:00:12]} 46. Ke2 {[%clk 0:00:05]}  Bd3+ {[%clk 0:00:12]} 47. Kf2 {[%clk 0:00:05]}  Bb5 {[%clk 0:00:12]} 48. Ke1 {[%clk 0:00:04]}  Ke3 {[%clk 0:00:12]} 49. Kd1 {[%clk 0:00:05]}  Kf2 {[%clk 0:00:11]} 50. Kd2 {[%clk 0:00:04]}  e4 {[%clk 0:00:12]} 51. Kc3 {[%clk 0:00:05]}  e3 {[%clk 0:00:12]} 52. Kd4 {[%clk 0:00:06]}  e2 {[%clk 0:00:13]} 53. Ke5 {[%clk 0:00:07]}  e1=Q+ {[%clk 0:00:13]} 54. Kf5 {[%clk 0:00:08]}  Kg2 {[%clk 0:00:11]} 55. Kg5 {[%clk 0:00:09]}  Qxg3 {[%clk 0:00:11]} 56. Kxh5 {[%clk 0:00:10]}  Qxh2+ {[%clk 0:00:11]} 57. Kxg4 {[%clk 0:00:11]}  Qh3+ {[%clk 0:00:11]} 58. Kf4 {[%clk 0:00:10]}  Qf3+ {[%clk 0:00:12]} 59. Kg5 {[%clk 0:00:10]}  Bf1 {[%clk 0:00:12]} 60. Kh4 {[%clk 0:00:09]}  Qg3+ {[%clk 0:00:12]} 61. Kh5 {[%clk 0:00:09]}  Kf3 {[%clk 0:00:12]} 62. Kh6 {[%clk 0:00:08]}  Kf4 {[%clk 0:00:13]} 63. Kh5 {[%clk 0:00:09]}  Qg5# {[%clk 0:00:12]} 0-1


[Site "https://www.chess.com"]

[Event "Titled Tuesday Blitz June 20 Early 2023"]
[White "Ansh M Shah"]
[Black "Semenova, Alina"]
[WhiteFideId "25033379"]
[BlackFideId "24113875"]
[WhiteElo "2084"]
[BlackElo "1833"]
[Result "1-0"]
[Round "2"]
[TimeControl "180+2"]
[Date "2023.06.20"]
[WhiteClock "0:00:06"]
[BlackClock "0:00:00"]
[Board "241"]

1. d4 {[%clk 0:03:00]}  d6 {[%clk 0:02:59]} 2. c4 {[%clk 0:02:59]}  Nf6 {[%clk 0:03:00]} 3. Nc3 {[%clk 0:02:58]}  g6 {[%clk 0:03:00]} 4. e4 {[%clk 0:02:59]}  Bg7 {[%clk 0:03:01]} 5. h4 {[%clk 0:03:00]}  h5 {[%clk 0:02:58]} 6. Be2 {[%clk 0:02:59]}  O-O {[%clk 0:02:58]} 7. Nf3 {[%clk 0:02:59]}  e5 {[%clk 0:02:56]} 8. d5 {[%clk 0:02:59]}  a5 {[%clk 0:02:54]} 9. Ng5 {[%clk 0:02:57]}  Na6 {[%clk 0:02:44]} 10. f3 {[%clk 0:02:56]}  Nc5 {[%clk 0:02:38]} 11. Be3 {[%clk 0:02:57]}  a4 {[%clk 0:02:37]} 12. Qd2 {[%clk 0:02:43]}  a3 {[%clk 0:02:26]} 13. b4 {[%clk 0:02:38]}  Na6 {[%clk 0:02:16]} 14. Rb1 {[%clk 0:02:36]}  Nh7 {[%clk 0:02:11]} 15. Rb3 {[%clk 0:02:23]}  Bd7 {[%clk 0:01:59]} 16. Nb1 {[%clk 0:02:12]}  f5 {[%clk 0:01:41]} 17. Rxa3 {[%clk 0:01:41]}  f4 {[%clk 0:01:18]} 18. Bf2 {[%clk 0:01:28]}  Nxg5 {[%clk 0:01:17]} 19. hxg5 {[%clk 0:01:28]}  Qxg5 {[%clk 0:01:18]} 20. Bf1 {[%clk 0:01:26]}  Qe7 {[%clk 0:00:43]} 21. Bd3 {[%clk 0:01:14]}  c6 {[%clk 0:00:27]} 22. dxc6 {[%clk 0:00:54]}  bxc6 {[%clk 0:00:28]} 23. c5 {[%clk 0:00:54]}  d5 {[%clk 0:00:26]} 24. Rxa6 {[%clk 0:00:49]}  dxe4 {[%clk 0:00:19]} 25. fxe4 {[%clk 0:00:42]}  Rxa6 {[%clk 0:00:18]} 26. Bxa6 {[%clk 0:00:42]}  f3 {[%clk 0:00:17]} 27. g3 {[%clk 0:00:17]}  Bg4 {[%clk 0:00:16]} 28. Bc4+ {[%clk 0:00:16]}  Kh7 {[%clk 0:00:15]} 29. Qd6 {[%clk 0:00:15]}  Qa7 {[%clk 0:00:11]} 30. O-O {[%clk 0:00:13]}  h4 {[%clk 0:00:05]} 31. Be6 {[%clk 0:00:10]}  hxg3 {[%clk 0:00:05]} 32. Bxg4 {[%clk 0:00:09]}  gxf2+ {[%clk 0:00:05]} 33. Rxf2 {[%clk 0:00:10]}  Qa4 {[%clk 0:00:03]} 34. Nd2 {[%clk 0:00:08]}  Qd1+ {[%clk 0:00:02]} 35. Nf1 {[%clk 0:00:09]}  Qxd6 {[%clk 0:00:01]} 36. cxd6 {[%clk 0:00:10]}  Rf6 {[%clk 0:00:01]} 37. Rd2 {[%clk 0:00:07]}  Bf8 {[%clk 0:00:00]} 38. d7 {[%clk 0:00:06]} 1-0


[Site "https://www.chess.com"]

[Event "Titled Tuesday Blitz June 20 Early 2023"]
[White "Saim, Mohamed Ilias"]
[Black "Balla, Tamas-Kristof"]
[WhiteFideId "7900465"]
[BlackFideId "1208497"]
[WhiteElo "2063"]
[BlackElo "2334"]
[Result "0-1"]
[Round "2"]
[TimeControl "180+2"]
[Date "2023.06.20"]
[WhiteClock "0:02:04"]
[BlackClock "0:02:49"]
[Board "242"]

1. c4 {[%clk 0:03:00]}  c5 {[%clk 0:02:57]} 2. g3 {[%clk 0:02:59]}  Nc6 {[%clk 0:02:57]} 3. Bg2 {[%clk 0:03:00]}  g6 {[%clk 0:02:57]} 4. Nf3 {[%clk 0:03:00]}  Bg7 {[%clk 0:02:58]} 5. Nc3 {[%clk 0:02:59]}  e6 {[%clk 0:02:58]} 6. O-O {[%clk 0:02:56]}  Nge7 {[%clk 0:02:59]} 7. e4 {[%clk 0:02:51]}  O-O {[%clk 0:02:58]} 8. d3 {[%clk 0:02:50]}  d6 {[%clk 0:02:59]} 9. a3 {[%clk 0:02:45]}  Nd4 {[%clk 0:02:57]} 10. Bd2 {[%clk 0:02:25]}  b6 {[%clk 0:02:56]} 11. b4 {[%clk 0:02:24]}  Bb7 {[%clk 0:02:56]} 12. Rb1 {[%clk 0:02:21]}  Nec6 {[%clk 0:02:51]} 13. Bg5 {[%clk 0:02:04]}  Nxf3+ {[%clk 0:02:49]} 0-1


[Site "https://www.chess.com"]

[Event "Titled Tuesday Blitz June 20 Early 2023"]
[White "Sai Han Thiha"]
[Black "Goughfather"]
[WhiteFideId "13012290"]
[WhiteElo "1953"]
[BlackElo "2007"]
[Result "1-0"]
[Round "2"]
[TimeControl "180+2"]
[Date "2023.06.20"]
[WhiteClock "0:00:11"]
[BlackClock "0:00:00"]
[Board "243"]

1. d4 {[%clk 0:03:00]}  d5 {[%clk 0:02:59]} 2. Nf3 {[%clk 0:03:01]}  Nf6 {[%clk 0:02:59]} 3. c3 {[%clk 0:03:01]}  Bf5 {[%clk 0:02:58]} 4. Qb3 {[%clk 0:03:01]}  Bc8 {[%clk 0:02:53]} 5. Bf4 {[%clk 0:02:52]}  c6 {[%clk 0:02:53]} 6. e3 {[%clk 0:02:50]}  Qb6 {[%clk 0:02:53]} 7. c4 {[%clk 0:02:48]}  dxc4 {[%clk 0:02:41]} 8. Bxc4 {[%clk 0:02:47]}  e6 {[%clk 0:02:41]} 9. Nc3 {[%clk 0:02:40]}  Qxb3 {[%clk 0:02:35]} 10. axb3 {[%clk 0:02:19]}  Nd5 {[%clk 0:02:35]} 11. Bxb8 {[%clk 0:02:05]}  Rxb8 {[%clk 0:02:30]} 12. Rxa7 {[%clk 0:02:06]}  Bb4 {[%clk 0:02:30]} 13. Kd2 {[%clk 0:02:06]}  O-O {[%clk 0:02:18]} 14. e4 {[%clk 0:01:48]}  Nf6 {[%clk 0:02:11]} 15. Re1 {[%clk 0:01:49]}  Rd8 {[%clk 0:02:10]} 16. Kc2 {[%clk 0:01:49]}  Bd7 {[%clk 0:01:55]} 17. h3 {[%clk 0:01:43]}  Be8 {[%clk 0:01:55]} 18. Re3 {[%clk 0:01:42]}  c5 {[%clk 0:01:50]} 19. d5 {[%clk 0:00:51]}  b5 {[%clk 0:01:49]} 20. Bf1 {[%clk 0:00:51]}  exd5 {[%clk 0:01:12]} 21. exd5 {[%clk 0:00:52]}  Nxd5 {[%clk 0:01:11]} 22. Rxe8+ {[%clk 0:00:52]}  Rxe8 {[%clk 0:01:08]} 23. Nxd5 {[%clk 0:00:53]}  Red8 {[%clk 0:00:55]} 24. Ne7+ {[%clk 0:00:53]}  Kf8 {[%clk 0:00:44]} 25. Nc6 {[%clk 0:00:54]}  Ra8 {[%clk 0:00:44]} 26. Rb7 {[%clk 0:00:28]}  Rdc8 {[%clk 0:00:27]} 27. Nce5 {[%clk 0:00:27]}  f6 {[%clk 0:00:27]} 28. Nd7+ {[%clk 0:00:24]}  Kg8 {[%clk 0:00:27]} 29. Bxb5 {[%clk 0:00:24]}  Re8 {[%clk 0:00:20]} 30. Nb6 {[%clk 0:00:17]}  Rab8 {[%clk 0:00:13]} 31. Bxe8 {[%clk 0:00:13]}  Rxb7 {[%clk 0:00:13]} 32. Nd5 {[%clk 0:00:14]}  Ra7 {[%clk 0:00:10]} 33. Bb5 {[%clk 0:00:12]}  Ra1 {[%clk 0:00:09]} 34. Ne7+ {[%clk 0:00:10]}  Kf7 {[%clk 0:00:09]} 35. Nc6 {[%clk 0:00:11]}  Ra8 {[%clk 0:00:07]} 36. Nxb4 {[%clk 0:00:10]}  cxb4 {[%clk 0:00:08]} 37. Nd4 {[%clk 0:00:10]}  Rc8+ {[%clk 0:00:07]} 38. Kd3 {[%clk 0:00:10]}  Rc1 {[%clk 0:00:06]} 39. Nc2 {[%clk 0:00:10]}  Rf1 {[%clk 0:00:05]} 40. Ke3 {[%clk 0:00:09]}  Rc1 {[%clk 0:00:05]} 41. Nxb4 {[%clk 0:00:09]}  Rb1 {[%clk 0:00:05]} 42. Nd3 {[%clk 0:00:09]}  Ra1 {[%clk 0:00:03]} 43. b4 {[%clk 0:00:09]}  Ra8 {[%clk 0:00:02]} 44. Bc4+ {[%clk 0:00:10]}  Kg6 {[%clk 0:00:02]} 45. b5 {[%clk 0:00:11]}  Re8+ {[%clk 0:00:01]} 46. Kd4 {[%clk 0:00:11]}  Rc8 {[%clk 0:00:02]} 47. b6 {[%clk 0:00:10]}  Rd8+ {[%clk 0:00:01]} 48. Kc5 {[%clk 0:00:10]}  Rc8+ {[%clk 0:00:02]} 49. Kb5 {[%clk 0:00:10]}  Rb8 {[%clk 0:00:02]} 50. Nc5 {[%clk 0:00:11]}  Rd8 {[%clk 0:00:00]} 51. b7 {[%clk 0:00:11]} 1-0


[Site "https://www.chess.com"]

[Event "Titled Tuesday Blitz June 20 Early 2023"]
[White "Porat, Tori"]
[Black "Goncalves, Davi Sulzbacher"]
[WhiteFideId "30982626"]
[BlackFideId "2154510"]
[WhiteElo "1752"]
[BlackElo "2182"]
[Result "0-1"]
[Round "2"]
[TimeControl "180+2"]
[Date "2023.06.20"]
[WhiteClock "0:00:16"]
[BlackClock "0:00:44"]
[Board "245"]

1. d4 {[%clk 0:03:00]}  Nf6 {[%clk 0:02:57]} 2. c4 {[%clk 0:03:00]}  e6 {[%clk 0:02:58]} 3. Nc3 {[%clk 0:02:57]}  c5 {[%clk 0:02:56]} 4. d5 {[%clk 0:02:56]}  exd5 {[%clk 0:02:56]} 5. cxd5 {[%clk 0:02:56]}  g6 {[%clk 0:02:57]} 6. Nf3 {[%clk 0:02:46]}  Bg7 {[%clk 0:02:56]} 7. g3 {[%clk 0:02:41]}  O-O {[%clk 0:02:56]} 8. Bg2 {[%clk 0:02:41]}  Re8 {[%clk 0:02:56]} 9. O-O {[%clk 0:02:41]}  d6 {[%clk 0:02:55]} 10. Bg5 {[%clk 0:02:34]}  h6 {[%clk 0:02:53]} 11. Bxf6 {[%clk 0:02:34]}  Qxf6 {[%clk 0:02:51]} 12. Rb1 {[%clk 0:02:32]}  Nd7 {[%clk 0:02:50]} 13. Nb5 {[%clk 0:02:24]}  Re7 {[%clk 0:02:35]} 14. Nc7 {[%clk 0:02:13]}  Rb8 {[%clk 0:02:35]} 15. Nb5 {[%clk 0:02:00]}  a6 {[%clk 0:02:35]} 16. Nc3 {[%clk 0:02:00]}  b5 {[%clk 0:02:34]} 17. e3 {[%clk 0:01:58]}  Nb6 {[%clk 0:02:18]} 18. Ne2 {[%clk 0:01:49]}  Bf5 {[%clk 0:02:13]} 19. Rc1 {[%clk 0:01:37]}  Qxb2 {[%clk 0:02:13]} 20. Nh4 {[%clk 0:01:36]}  Bg4 {[%clk 0:02:10]} 21. Bf3 {[%clk 0:01:33]}  Bd7 {[%clk 0:01:44]} 22. Rc2 {[%clk 0:01:30]}  Qf6 {[%clk 0:01:42]} 23. Bg2 {[%clk 0:01:22]}  Bg4 {[%clk 0:01:32]} 24. Qb1 {[%clk 0:01:06]}  g5 {[%clk 0:01:29]} 25. h3 {[%clk 0:00:37]}  Bxe2 {[%clk 0:01:29]} 26. Rxe2 {[%clk 0:00:37]}  gxh4 {[%clk 0:01:29]} 27. gxh4 {[%clk 0:00:38]}  Qxh4 {[%clk 0:01:23]} 28. Kh1 {[%clk 0:00:28]}  Kh8 {[%clk 0:01:20]} 29. Rg1 {[%clk 0:00:23]}  Re5 {[%clk 0:01:11]} 30. f4 {[%clk 0:00:23]}  Rh5 {[%clk 0:01:06]} 31. Kh2 {[%clk 0:00:22]}  Rg8 {[%clk 0:01:00]} 32. Qf1 {[%clk 0:00:20]}  Bf6 {[%clk 0:00:52]} 33. Bf3 {[%clk 0:00:20]}  Qxh3+ {[%clk 0:00:42]} 34. Qxh3 {[%clk 0:00:19]}  Rxh3+ {[%clk 0:00:43]} 35. Kxh3 {[%clk 0:00:16]}  Rxg1 {[%clk 0:00:44]} 0-1


[Site "https://www.chess.com"]

[Event "Titled Tuesday Blitz June 20 Early 2023"]
[White "Rangel, Daniel"]
[Black "Skiadopoulos, Nikolaos"]
[WhiteFideId "2124475"]
[BlackFideId "4200772"]
[WhiteElo "2231"]
[BlackElo "2022"]
[Result "1-0"]
[Round "2"]
[TimeControl "180+2"]
[Date "2023.06.20"]
[WhiteClock "0:00:53"]
[BlackClock "0:00:00"]
[Board "248"]

1. d4 {[%clk 0:03:00]}  Nf6 {[%clk 0:02:58]} 2. c4 {[%clk 0:03:01]}  c5 {[%clk 0:02:58]} 3. Nf3 {[%clk 0:03:00]}  g6 {[%clk 0:02:56]} 4. Nc3 {[%clk 0:02:59]}  Bg7 {[%clk 0:02:54]} 5. d5 {[%clk 0:02:59]}  d6 {[%clk 0:02:53]} 6. g3 {[%clk 0:02:59]}  Na6 {[%clk 0:02:53]} 7. Bg2 {[%clk 0:03:00]}  Nc7 {[%clk 0:02:52]} 8. O-O {[%clk 0:03:01]}  O-O {[%clk 0:02:52]} 9. e4 {[%clk 0:03:01]}  b5 {[%clk 0:02:41]} 10. cxb5 {[%clk 0:02:59]}  a6 {[%clk 0:02:41]} 11. e5 {[%clk 0:02:41]}  Nd7 {[%clk 0:02:31]} 12. exd6 {[%clk 0:02:36]}  exd6 {[%clk 0:02:30]} 13. bxa6 {[%clk 0:02:34]}  Bxa6 {[%clk 0:02:28]} 14. Re1 {[%clk 0:02:35]}  Re8 {[%clk 0:02:24]} 15. Bf4 {[%clk 0:02:31]}  Rxe1+ {[%clk 0:02:10]} 16. Qxe1 {[%clk 0:02:30]}  Nb6 {[%clk 0:02:10]} 17. Rd1 {[%clk 0:02:19]}  Qd7 {[%clk 0:01:50]} 18. Ne4 {[%clk 0:02:14]}  Re8 {[%clk 0:01:48]} 19. Bxd6 {[%clk 0:01:47]}  Rxe4 {[%clk 0:01:41]} 20. Qxe4 {[%clk 0:01:48]}  Qxd6 {[%clk 0:01:41]} 21. b3 {[%clk 0:01:48]}  Nbxd5 {[%clk 0:01:34]} 22. Ng5 {[%clk 0:01:17]}  Bb7 {[%clk 0:01:24]} 23. Qf3 {[%clk 0:01:11]}  Bf6 {[%clk 0:00:57]} 24. Ne4 {[%clk 0:01:09]}  Qe6 {[%clk 0:00:16]} 25. Nxf6+ {[%clk 0:01:05]}  Nxf6 {[%clk 0:00:15]} 26. Qxb7 {[%clk 0:01:03]}  Nce8 {[%clk 0:00:11]} 27. a4 {[%clk 0:00:58]}  Kg7 {[%clk 0:00:09]} 28. a5 {[%clk 0:00:57]}  Nd6 {[%clk 0:00:09]} 29. Qc6 {[%clk 0:00:55]}  Nfe8 {[%clk 0:00:02]} 30. a6 {[%clk 0:00:54]}  Qxb3 {[%clk 0:00:00]} 31. Rxd6 {[%clk 0:00:53]} 1-0


[Site "https://www.chess.com"]